Cogmind - Beta 13 @@@ ROGUE MODE // 2024.05.18 @ 13:11:42 Player: Bace Troncons Result: Destroyed by Autobeam Turret with Autobeam Performance ------------- Evolutions (0) 0 Regions Visited (2) 400 Robots Destroyed (29) 145 Value Destroyed (714) 714 Prototype IDs (0) 0 Alien Tech Used (0) 0 Bonus (0) 0 TOTAL SCORE: 1259 Bonus ------- None Cogmind --------- Core Integrity 0/250 Matter 300/300 Energy 96/100 System Corruption 0% Temperature Cool (26) Movement Treading (160) Location -10/Subcaves Parts ------- > --- POWER (1) -------- (None) > --- PROPULSION (2) --- Light Treads Light Treads > --- UTILITY (2) ------ Small Storage Unit Light Armor Plating > --- WEAPON (2) ------- Assault Rifle Assault Rifle > --- INVENTORY (8) ---- Machine Analyzer Sensor Array Signal Interpreter Terrain Scanner Light Armor Plating Light Armor Plating Assault Rifle Datajack Peak State ------------ > --- POWER ------------ Light Nuclear Core > --- PROPULSION ------- Light Treads Light Treads > --- UTILITY ---------- Small Storage Unit Sensor Array > --- WEAPON ----------- Assault Rifle Light Assault Rifle > --- INVENTORY -------- Ion Engine Ion Engine Light Treads Machine Analyzer Signal Interpreter Light Assault Rifle Light Assault Rifle Light Assault Rifle [Rating: 10] Favorites ----------- Power Ion Engine Engine Ion Engine Power Core Light Nuclear Core Propulsion Light Treads Treads Light Treads Utility Small Storage Unit Device Sensor Array Storage Small Storage Unit Protection Light Armor Plating Weapon Assault Rifle Energy Gun Medium Laser Ballistic Gun Assault Rifle Build | -11 -10 -10 ------- Run | Yrd Mat Sub Slots Evolved . | . . . Power . | . . . Propulsion . | . . . Utility . | . . . Weapon . | . . . Parts Attached 27 | 6 18 3 Power 3 | 1 2 . Engine 2 | 1 1 . Core 1 | . 1 . Reactor . | . . . Propulsion 9 | 2 7 . Treads 9 | 2 7 . Leg . | . . . Wheel . | . . . Hover . | . . . Flight . | . . . Utility 6 | 1 2 3 Device 4 | . 2 2 Storage 1 | 1 . . Processor . | . . . Hackware . | . . . Protection 1 | . . 1 Artifact . | . . . Weapon 9 | 2 7 . Energy Gun 1 | 1 . . Energy Cannon . | . . . Ballistic Gun 8 | 1 7 . Ballistic Cannon . | . . . Launcher . | . . . Special Weapon . | . . . Impact Weapon . | . . . Slashing Weapon . | . . . Piercing Weapon . | . . . Special Melee Weapon . | . . . Unidentified Prototypes . | . . . Parts Lost 2 | . 1 1 Power 2 | . 1 1 Propulsion . | . . . Utility . | . . . Weapon . | . . . Highest Loss Streak 1 | . 1 1 To Critical Strikes . | . . . Average Slot Usage (%) 98 | . 98 99 Engine 11 | . 10 13 Core 1 | . 3 . Treads 27 | . 27 28 Device 12 | . 12 11 Storage 14 | . 14 14 Energy Gun 1 | . 2 . Ballistic Gun 26 | . 25 28 Naked Turns . | . . . Heaviest Build 17 | 14 15 17 Greatest Support 40 | 40 40 40 Greatest Overweight (x) . | . . . Average Overweight (x) . | . . . Largest Inventory Capacity 8 | 8 8 8 Average Capacity 7 | 6 8 8 Most Carried 8 | 4 8 8 Average Carried 7 | 2 7 8 Final Capacity 8 | 8 8 8 Final Carried 8 | 4 8 8 Class Distribution -------------------- 100% | Mutant Dominant Class ---------------- Mutant | -10/Materials Mutant | -10/Subcaves Resources | -11 -10 -10 ----------- Run | Yrd Mat Sub Matter Collected 815 | 156 556 103 Remotely . | . . . Salvage Created 930 | . 845 85 Parts 63 | . 61 2 Haulers Intercepted 1 | . 1 . Recyclers Shooed . | . . . Parts Field Recycled . | . . . Retrieved Matter . | . . . Parts Self-Destructed 17 | . . 17 Prevented . | . . . Kills | -11 -10 -10 ------- Run | Yrd Mat Sub Combat Hostiles Destroyed 22 | . 20 2 Guns 22 | . 20 2 Classes Destroyed 7 | . 7 . Builder 1 | . 1 . Hauler 1 | . 1 . Mechanic 1 | . 1 . Operator 2 | . 2 . Watcher 2 | . 2 . Swarmer 6 | . 6 . Grunt 16 | . 14 2 Best Kill Streak 8 | . 8 2 Combat Bots Only 8 | . 8 2 Max Kills in Single Turn 1 | . 1 1 Gunslinging . | . . . Exploded . | . . . Melee . | . . . Uniques/NPCs Destroyed . | . . . Combat | -11 -10 -10 -------- Run | Yrd Mat Sub Hostile Shots Fired 181 | . 84 97 Missed 60 | . 24 36 Damage Taken 1234 | . 679 555 Core 254 | . 146 108 Absorbed by Shields . | . . . Regen/Repaired (Parts) 134 | . 134 . Core Remaining (%) 100 | 100 . . Volleys Fired 82 | . 76 6 Largest 2 | . 2 2 Hottest 70 | . 70 40 Shots Fired 164 | . 152 12 Gun 164 | . 152 12 Cannon . | . . . Launcher . | . . . Special . | . . . Kinetic 134 | . 122 12 Thermal 30 | . 30 . Explosive . | . . . Electromagnetic . | . . . Robot Hit Streak 12 | . 12 9 Robot Miss Streak 3 | . 3 1 Penetration Max . | . . . Secondary Targets 1 | . 1 . Max Gunslinging Chain 1 | . 1 . Shots Hit Robots 109 | . 98 11 Core Hits 44 | . 40 4 Critical Kills 2 | . 2 . Critical Parts Destroyed 2 | . 2 . Critical Strikes 7 | . 7 . Burn 3 | . 3 . Destroy 4 | . 4 . Melee Attacks . | . . . Impact . | . . . Slashing . | . . . Piercing . | . . . Sneak Attacks . | . . . Combat Hostiles . | . . . Follow-up Attacks . | . . . Damage Inflicted 1369 | . 1219 150 Guns 1369 | . 1219 150 Cannons . | . . . Explosions . | . . . Melee . | . . . Ramming . | . . . Kinetic 1135 | . 985 150 Thermal 234 | . 234 . Explosive . | . . . Electromagnetic . | . . . Impact . | . . . Slashing . | . . . Piercing . | . . . Highest Corruption . | . . . Average Corruption . | . . . Corruption Purged . | . . . Corruption Blocked . | . . . Overload Shots . | . . . Overflow Damage . | . . . Projectiles . | . . . Explosions . | . . . Melee . | . . . Knockbacks . | . . . Impact . | . . . Kinetic . | . . . Secondary . | . . . Self-Inflicted Damage . | . . . Shots . | . . . Rammed . | . . . Targets Rammed . | . . . Kicked . | . . . Crushed . | . . . Highest Temperature 133 | . 133 9 Average Temperature 28 | . 28 9 Received Heat Transfer 702 | . 342 360 Siege Activations . | . . . Robots Corrupted . | . . . Combat Hostiles . | . . . Parts Fried . | . . . Impact Corruptions . | . . . Robots Melted . | . . . Combat Hostiles . | . . . Parts Melted 4 | . 4 . Heat Transferred 925 | . 925 . Parts Sabotaged . | . . . Parts Stolen . | . . . Parts Stripped . | . . . Power Chain Reactions . | . . . Alert | -11 -10 -10 ------- Run | Yrd Mat Sub Peak Influence 319 | . 319 . Initial . | . . . Average 68 | . 70 . Maximum Alert Level 1 | . 1 . Low Security (%) 96 | 100 96 . Level 1 3 | . 3 . Level 2 . | . . . Level 3 . | . . . Level 4 . | . . . Level 5 . | . . . High Security . | . . . Max Security . | . . . Squads Dispatched 6 | . 6 . Investigation 2 | . 2 . Extermination . | . . . Reinforcement 4 | . 4 . Assault . | . . . Garrison . | . . . Intercept . | . . . Searches Triggered . | . . . Construction Impeded . | . . . Haulers Reinforced . | . . . Active Scanning Responses . | . . . Cargo Convoy Interrupts . | . . . Stealth | -11 -10 -10 --------- Run | Yrd Mat Sub Distress Signals 1 | . 1 . Communications Jammed . | . . . Distress Signals . | . . . Times Spotted 66 | . 28 38 Peak Tracking Total 4 | . 4 2 Tactical Retreats 4 | . . 4 Traps | -11 -10 -10 ------- Run | Yrd Mat Sub Traps Triggered 4 | . 4 . Indirectly . | . . . Trap Hack Attempts . | . . . Triggered . | . . . Disarmed . | . . . Reprogrammed . | . . . Reused . | . . . Traps Extracted . | . . . Installed . | . . . Triggered . | . . . Machines | -11 -10 -10 ---------- Run | Yrd Mat Sub Machines Disabled . | . . . Max in Single Turn . | . . . Machines Repaired . | . . . Machines Dismantled . | . . . Machines Sabotaged . | . . . Overloaded Fab Kills . | . . . Hacking | -11 -10 -10 --------- Run | Yrd Mat Sub Machines Accessed 4 | . 4 . Terminals 3 | . 3 . Fabricators . | . . . Repair Stations 1 | . 1 . Recycling Units . | . . . Scanalyzers . | . . . Garrison Access . | . . . Total Hacks 10 | . 10 . Successful 4 | . 4 . Failed 6 | . 6 . Catastrophic 3 | . 3 . Database Lockouts . | . . . Manual 4 | . 4 . Terminals 5 | . 5 . Fabricators . | . . . Repair Stations 5 | . 5 . Recycling Units . | . . . Scanalyzers . | . . . Garrison Access . | . . . Terminal Hacks . | . . . Fabricator Hacks . | . . . Repair Station Hacks 4 | . 4 . Scan Component 2 | . 2 . Repair 2 | . 2 . Recycling Unit Hacks . | . . . Scanalyzer . | . . . Garrison Access Hacks . | . . . Unauthorized Hacks . | . . . Terminals . | . . . Fabricators . | . . . Repair Stations . | . . . Recycling Units . | . . . Scanalyzers . | . . . Garrison Access . | . . . Data Cores Recovered . | . . . Used . | . . . Hacking Detections 4 | . 4 . Full Trace Events 1 | . 1 . Feedback Events . | . . . Feedback Blocked . | . . . Robot Schematics Acquired . | . . . Robots Built . | . . . Authchips . | . . . Time . | . . . Total Robot Build Rating . | . . . Part Schematics Acquired . | . . . Parts Built . | . . . Authchips . | . . . Time . | . . . Total Part Build Rating . | . . . Parts Repaired 2 | . 2 . Time 52 | . 52 . Parts Recycled . | . . . Recycled Matter . | . . . Retrieved Matter . | . . . Retrieved Components . | . . . Parts Scanalyzed . | . . . Part Schematics Acquired . | . . . Parts Damaged . | . . . Bothacking | -11 -10 -10 ------------ Run | Yrd Mat Sub Used RIF Installer . | . . . Robots Hacked . | . . . Non-combat . | . . . Combat . | . . . Robot Hacks Applied . | . . . Relay Couplers Released . | . . . Fabnet Peak Effective % . | . . . Robots Rewired . | . . . Allies Hacked . | . . . Hacks Repelled . | . . . Allies | -11 -10 -10 -------- Run | Yrd Mat Sub Total Allies . | . . . Largest Group . | . . . Highest-Rated Group . | . . . Highest-Rated Ally . | . . . Total Orders . | . . . Ally Attacks . | . . . Total Damage . | . . . Kills . | . . . Allies Corrupted . | . . . Allies Melted . | . . . Intel | -11 -10 -10 ------- Run | Yrd Mat Sub Robot Analysis Total . | . . . Derelict Logs Recovered . | . . . Drone Launches . | . . . Drone Recoveries . | . . . Exploration | -11 -10 -10 ------------- Run | Yrd Mat Sub Turns Passed 4153 | 70 2239 1844 Spaces Moved 1190 | 38 943 209 Core 3 | 3 . . Treads 1187 | 35 943 209 Legs . | . . . Wheels . | . . . Hover . | . . . Flight . | . . . Fastest Speed 50 | 50 160 160 Average Speed 159 | 151 160 160 Slowest Speed 160 | 160 160 160 Overloaded Moves . | . . . Propulsion Burnouts . | . . . Robots Hopped . | . . . Cave-ins Triggered . | . . . Exploration Rate (%) 37 | 4 97 11 Regions Visited 2 Branch Regions 1 Pre-discovered Areas . | . . . Known Exits Taken . | . . . Unknown Exits Taken 2 | 1 1 . Scrap Searched . | . . . Spaces Dug . | . . . Terrain Destroyed . | . . . Melee . | . . . Projectile . | . . . AOE . | . . . Terrain Rammed . | . . . Walls Destroyed . | . . . Machines Disabled . | . . . Actions | -11 -10 -10 --------- Run | Yrd Mat Sub Total 3285 | 49 1530 1706 Wait 1951 | . 463 1488 Move 1188 | 37 942 209 Hop . | . . . Pick Up 19 | 6 13 . Fast Attach 12 | 4 8 . Attach 3 | 2 1 . Detach 2 | . 2 . Swap 12 | . 9 3 Drop 16 | . 16 . Fire 82 | . 76 6 Melee . | . . . Ram . | . . . Kick . | . . . Crush . | . . . Escape Stasis . | . . . Rewire . | . . . Trap . | . . . Miscellaneous . | . . . Route ------- -11/Scrapyard -10/Materials (discovered 5 exits: [*Mat x3] / [*Min] / [*Sub]) -10/Subcaves (discovered 1 exit: [*Rec]) History --------- Turn | Location | Event 33 | -11/Scrapyard | Discovered new exit (range 15) 71 | -11/Scrapyard | Entered Materials 308 | -10/Materials | Build established: Mutant 383 | -10/Materials | Core integrity fell below 50% 432 | -10/Materials | Destroyed 8 combat bots 648 | -10/Materials | Discovered new exit (range 15) 941 | -10/Materials | Discovered new exit (range 15) 1045 | -10/Materials | Repaired Lgt. Treads 1073 | -10/Materials | Repaired Sensor Array 1716 | -10/Materials | Discovered new exit (range 4) 2048 | -10/Materials | Discovered new exit (range 11) 2307 | -10/Materials | Discovered new exit (range 3) 2310 | -10/Materials | Entered Subcaves 3621 | -10/Subcaves | Discovered new exit (range 8) 4147 | -10/Subcaves | Core integrity fell below 20% 4154 | -10/Subcaves | Destroyed by Autobeam Turret with Autobeam Last Messages --------------- 02120_ K-01 Serf collects debris. 02159_ K-01 Serf cleans the Processing Tank. 02307_ EXIT=FOUND LOCATION=UNKNOWN AMBIENT_HEAT=-10 GOAL=ESCAPE 03621_ EXIT=FOUND 03854_ Acquired 5 matter. 03882_ Critical hit (Burn: +37). 03882_ G-34 Mercenary destroyed. 03891_ Aluminum Leg fries itself beyond repair. 03891_ G-47 Trooper destroyed. 03894_ Acquired 44 matter. 03896_ Acquired 41 matter. 03902_ Acquired 8 matter. 03968_ Acquired 5 matter. 04107_ Ion Engine destroyed. 04145_ Subatomizers dissect the Sub. Power Source. Map ----- +----------------------------------------------------+ | ????????????????????????# #?????????##? | | ???????????????????????###?# [ #??????? #? | | ?????????????????????### ### ##???? #? | | ?????????????????????# % #### #? | | ?????????????????????## ## #?? | | ?????????????????????# # # ### % #?? | | ??????????????????#?## ##### ## ## ##?? | | ?????????????#??####### ##??# ### #???# ##??? | | ???????????#???######## #?## ### ##??????#???? | | ??????????##??## #### ##?## %% #??????????? | | ??????????##?### ## ##?#?### ##??????????? | | ?????????#####?## ##?##?### ##??????????? | | ????????######??## ## ##?###?#### #??????????? | | ??????#?########### ### ###?##??## ##???????##? | | ??????####?#####?## ## ###??##### ##?#####?? ## | | ?????##??##??#?#?# #####??## #### ##? # | | ?????#?#?#####?### ##?###?# #?# #? # | | ?????#?#####?#### #### ###??## %### #? # | | ???????##???#### ###### ####### %### ## #? | | ?????#?###?##### ##########?## # ## #? | | ????#?##?##?#### ###""" "### #? | | ???????#???###########" #?## #? | | ??????###?#?####?#??## ##### * # ##? | | ?????#???##?##?#######""t % &&!& #### #?? | | ?????#?#?##????######< &%&# #??# ##? | | ?????####?#?###?####?#""t@ %*%&%# #??# #? | | ??????####?##??#??####" ##### =&##% #?## #? | | ??????##?##?######?###" ##?## #######?# ##? | | ???????##??###########""" "##?## #???????##% #?? | | ?????????####?###############??##%%###?###??# ##? | | ??????????####?################# ### ##### #? | | ??????????##?#####?# ###### #####? | | ????????????###????## &%&% #????? | | ?????????????###?##?#### % # ## #????? | | ???????????????????### # #### ###????? | | ??????????????????## ##### ##??## ##??????? | | ??????????????????# ####??# #???# ##???????? | | ???????????? "????## #?????# #% ###?###????????? | | ????????????? ""??# #####??##%## ##???????????? | | ???????????????#" # ##### #???????????? | | ???????????????# % #???????????? | | ???????????????# # ## # # ### ##???????????? | | ???????????????#?############# ##?###????????????? | | ?????????????????????????????###?????????????????? | | ?????????????????????????????????????????????????? | | ?????????????????????????????????????????????????? | | ?????????????????????????????????????????????????? | | ?????????????????????????????????????????????????? | | ?????????????????????????????????????????????????? | | ?????????????????????????????????????????????????? | +----------------------------------------------------+ Best States ------------- Heat Dissipation 25 Energy Generation 14 Energy Capacity 250 Matter Stores 300 Matter Capacity 300 Sight Range 16 Robot Scan Range 14 Terrain Scan Range 14 Terrain Scan Density 10 Armor Coverage 150 Evasion (%) 40 Recoil Reduction 2 Item Schematics ----------------- None Robot Schematics ------------------ None Fabricated ------------ Nothing Alien Tech Used ----------------- None Achievements -------------- None Challenges ------------ None Game ------ Seed DerelictDeepCore Manual? 0 Play Time 00:17:58 Cumulative 77.1 hours Start 2024.05.18 @ 12:56:42 End 2024.05.18 @ 13:11:42 Sessions 1 Manual Loads 0 Difficulty Rogue Special Mode None Game No. 120 Rogue 120 Adventurer 0 Explorer 0 Win Type - Total 1 Types 1/0/0/0/0/0/0/0/0 Lore% 38 Gallery% 42 Achievement% 32 Wizard Run 0 Options --------- Layout 1 ASCII 0 Keyboard 1 Movement Numpad Keybinds 0 Fullscreen 1 Font 24/Smallcaps Map View 50x35 Zoom Use 0% Tactical HUD 1 Map Filters NONE Filters NONE Steam 1 RUN: 55b35d3e-b23b-48c5-895b-fb0191c62382